fUSD/lending_fUSD_20251212
["ID","MTS","AMOUNT","RATE_DAILY","PERIOD"]
[398333105,1765537993734,-2044.69,0.00039178,30]
[398333106,1765537993753,-5043.62,0.00039178,30]
[398333107,1765537993774,-500.0,0.00039178,30]
[398333108,1765537993793,-500.0,0.00039178,30]
[398333109,1765537993813,-1215.55,0.00039178,30]
[398333110,1765537993830,-500.0,0.00039178,30]
[398333111,1765537993848,-500.0,0.00039178,30]
[398333112,1765537993865,-500.0,0.00039178,30]
[398333113,1765537993880,-500.0,0.00039178,30]
[398333114,1765537993897,-500.0,0.00039178,30]
[398333115,1765537993913,-1545.49,0.00039178,30]
[398333116,1765537993931,-660.88,0.00039178,30]
[398333117,1765537993946,-1589.48,0.00039178,30]
[398333118,1765537993963,-628.02,0.00039178,30]
[398333119,1765537993979,-500.0,0.00039178,30]
[398333120,1765537993996,-500.0,0.00039178,30]
[398333121,1765537994012,-626.53,0.00039178,30]
[398333122,1765537994028,-602.06,0.00039178,30]
[398333123,1765537994043,-500.0,0.00039178,30]
[398333124,1765537994059,-840.42,0.00039178,30]
[398333125,1765537994073,-500.0,0.00039178,30]
[398333126,1765537994088,-699.47,0.00039178,30]
[398333127,1765537994103,-905.19,0.00039178,30]
[398333128,1765537994119,-752.57,0.00039178,30]
[398333129,1765537994135,-2585.93,0.00039178,30]
[398333130,1765537994151,-789.34,0.00039178,30]
[398333131,1765537994167,-3440.78,0.00039178,30]
[398333132,1765537994182,-544.82427873,0.00039178,30]
[398333133,1765537994197,-563.79,0.00039178,30]
[398333134,1765537994212,-500.0,0.00039178,30]
[398333135,1765537994227,-500.0,0.00039178,30]
[398333136,1765537994244,-1586.65,0.00039178,30]
[398333137,1765537994259,-500.0,0.00039178,30]
[398333138,1765537994276,-571.37,0.00039178,30]
[398333139,1765537994292,-500.54,0.00039178,30]
[398333140,1765537994307,-500.0,0.00039178,30]
[398333141,1765537994322,-509.62,0.00039178,30]
[398333142,1765537994338,-500.0,0.00039178,30]
[398333143,1765537994354,-669.04,0.00039178,30]
[398333144,1765537994368,-3771.23,0.00039178,30]
[398333145,1765537994383,-500.0,0.00039178,30]
[398333146,1765537994399,-813.18,0.00039178,30]
[398333147,1765537994414,-500.0,0.00039178,30]
[398333148,1765537994428,-1179.73,0.00039178,30]
[398333149,1765537994444,-500.0,0.00039178,30]
[398333150,1765537994461,-500.0,0.00039178,30]
[398333151,1765537994476,-1235.8,0.00039178,30]
[398333152,1765537994491,-1360.54,0.00039178,30]
[398333153,1765537994506,-604.12,0.00039178,30]
[398333154,1765537994521,-500.0,0.00039178,30]
[398333155,1765537994536,-500.0,0.00039178,30]
[398333156,1765537994550,-518.64034097,0.00039178,30]
[398333157,1765537994566,-500.0,0.00039178,2]
[398333158,1765537994582,-500.0,0.00039178,30]
[398333159,1765537994598,-501.9541099,0.00039178,30]
[398333160,1765537994613,-500.0,0.00039178,30]
[398333161,1765537994629,-500.0,0.00039178,30]
[398333162,1765537994643,-972.77,0.00039178,30]
[398333163,1765537994658,-500.0,0.00039178,30]
[398333164,1765537994672,-500.0,0.00039178,30]
[398333165,1765537994686,-500.0,0.00039178,30]
[398333166,1765537994700,-500.0,0.00039178,30]
[398333167,1765537994716,-500.0,0.00039178,30]
[398333168,1765537994731,-4363.05,0.00039178,30]
[398333169,1765537994746,-731.82,0.00039178,30]
[398333170,1765537994762,-1418.58,0.00039178,30]
[398333171,1765537994776,-1625.02,0.00039178,30]
[398333172,1765537994791,-500.0,0.00039178,30]
[398333173,1765537994805,-500.0,0.00039178,30]
[398333174,1765537994820,-500.0,0.00039178,30]
[398333175,1765537994834,-500.0,0.00039178,30]
[398333176,1765537994851,-500.0,0.00039178,30]
[398333177,1765537994867,-500.0,0.00039178,30]
[398333178,1765537994883,-500.0,0.00039178,30]
[398333179,1765537994899,-805.19,0.00039178,30]
[398333180,1765537994913,-1679.93,0.00039178,30]
[398333181,1765537994928,-500.0,0.00039178,30]
[398333182,1765537994943,-500.0,0.00039178,30]
[398333183,1765537994959,-500.0,0.00039178,30]
[398333184,1765537994974,-11739.26,0.00039178,30]
[398333185,1765537994989,-510.13,0.00039178,30]
[398333186,1765537995004,-500.0,0.00039178,30]
[398333187,1765537995020,-500.0,0.00039178,30]
[398333188,1765537995034,-500.0,0.00039178,30]
[398333189,1765537995048,-1704.19,0.00039178,30]
[398333190,1765537995062,-878.65,0.00039178,30]
[398333191,1765537995077,-500.0,0.00039178,30]
[398333192,1765537995093,-619.07,0.00039178,30]
[398333193,1765537995107,-2892.66,0.00039178,30]
[398333194,1765537995121,-500.0,0.00039178,30]
[398333195,1765537995136,-500.0,0.00039178,30]
[398333196,1765537995151,-500.0,0.00039178,30]
[398333197,1765537995166,-500.0,0.00039178,30]
[398333198,1765537995180,-1899.29,0.00039178,30]
[398333199,1765537995195,-500.0,0.00039178,30]
[398333200,1765537995209,-1019.28,0.00039178,30]
[398333201,1765537995223,-500.0,0.00039178,30]
[398333202,1765537995240,-500.0,0.00039178,30]
[398333203,1765537995253,-1418.57,0.00039178,30]
[398333204,1765537995268,-500.0,0.00039178,30]
[398333205,1765537995288,-500.0,0.00039178,30]
[398333206,1765537995303,-500.0,0.00039178,30]
[398333207,1765537995319,-500.0,0.00039178,30]
[398333208,1765537995333,-500.0,0.00039178,30]
[398333209,1765537995348,-736.31,0.00039178,30]
[398333210,1765537995362,-500.0,0.00039178,30]
[398333211,1765537995376,-500.0,0.00039178,30]
[398333212,1765537995398,-500.0,0.00039178,30]
[398333213,1765537995418,-803.38,0.00039178,30]
[398333214,1765537995432,-500.0,0.00039178,30]
[398333215,1765537995446,-522.15,0.00039178,30]
[398333216,1765537995462,-500.0,0.00039178,30]
[398333217,1765537995476,-500.0,0.00039178,30]
[398333218,1765537995491,-500.0,0.00039178,30]
[398333219,1765537995507,-500.0,0.00039178,30]
[398333220,1765537995520,-500.0,0.00039178,30]
[398333221,1765537995534,-1055.47,0.00039178,30]
[398333222,1765537995548,-694.39,0.00039178,30]
[398333223,1765537995562,-1480.3,0.00039178,30]
[398333224,1765537995577,-1529.14,0.00039178,30]
[398333225,1765537995591,-505.89932821,0.00039178,30]
[398333226,1765537995607,-1887.69,0.00039178,30]
[398333227,1765537995622,-500.0,0.00039178,30]
[398333228,1765537995637,-1537.38,0.00039178,30]
[398333229,1765537995652,-500.0,0.00039178,30]
[398333230,1765537995669,-814.49,0.00039178,30]
[398333231,1765537995683,-500.0,0.00039178,30]
[398333232,1765537995698,-500.0,0.00039178,30]
[398333233,1765537995711,-878.0,0.00039178,30]
[398333234,1765537995726,-500.0,0.00039178,30]
[398333235,1765537995740,-542.52,0.00039178,30]
[398333236,1765537995754,-500.0,0.00039178,30]
[398333237,1765537995770,-500.0,0.00039178,30]
[398333238,1765537995785,-500.0,0.00039178,30]
[398333239,1765537995800,-1609.53,0.00039178,30]
[398333240,1765537995814,-500.0,0.00039178,30]
[398333241,1765537995829,-500.0,0.00039178,30]
[398333242,1765537995847,-1220.84,0.00039178,30]
[398333243,1765537995861,-500.0,0.00039178,30]
[398333244,1765537995875,-509.73206547,0.00039178,30]
[398333245,1765537995891,-500.0,0.00039178,30]
[398333246,1765537995906,-1987.44,0.00039178,30]
[398333247,1765537995923,-500.0,0.00039178,30]
[398333248,1765537995937,-500.0,0.00039178,30]
[398333249,1765537995952,-1330.17,0.00039178,30]
[398333250,1765537995965,-994.63,0.00039178,30]
[398333251,1765537995979,-1382.15,0.00039178,30]
[398333252,1765537995994,-500.0,0.00039178,30]
[398333253,1765537996009,-500.0,0.00039178,30]
[398333254,1765537996023,-1159.62,0.00039178,30]
[398333255,1765537996039,-500.0,0.00039178,30]
[398333256,1765537996053,-500.0,0.00039178,30]
[398333257,1765537996068,-500.0,0.00039178,30]
[398333258,1765537996083,-1136.89,0.00039178,30]
[398333259,1765537996097,-556.58,0.00039178,30]
[398333260,1765537996112,-9826.53,0.00039178,30]
[398333261,1765537996127,-500.0,0.00039178,30]
[398333262,1765537996143,-500.0,0.00039178,30]
[398333263,1765537996158,-500.0,0.00039178,30]
[398333264,1765537996172,-500.0,0.00039178,30]
[398333265,1765537996186,-972.17,0.00039178,30]
[398333266,1765537996200,-500.0,0.00039178,30]
[398333267,1765537996215,-731.37,0.00039178,30]
[398333268,1765537996228,-500.0,0.00039178,30]
[398333269,1765537996242,-1614.96,0.00039178,30]
[398333270,1765537996256,-500.0,0.00039178,30]
[398333271,1765537996272,-500.0,0.00039178,30]
[398333272,1765537996287,-4738.09,0.00039178,30]
[398333273,1765537996301,-1327.17,0.00039178,30]
[398333274,1765537996316,-500.0,0.00039178,30]
[398333275,1765537996330,-3631.76,0.00039178,30]
[398333276,1765537996353,-500.0,0.00039178,30]
[398333277,1765537996368,-500.0,0.00039178,30]
[398333278,1765537996382,-500.0,0.00039178,30]
[398333279,1765537996397,-500.0,0.00039178,30]
[398333280,1765537996412,-500.0,0.00039178,30]
[398333281,1765537996426,-963.98,0.00039178,30]
[398333282,1765537996440,-634.95,0.00039178,30]
[398333283,1765537996455,-3329.8,0.00039178,30]
[398333284,1765537996469,-500.0,0.00039178,30]
[398333285,1765537996484,-500.0,0.00039178,30]
[398333286,1765537996499,-500.0,0.00039178,30]
[398333287,1765537996514,-1124.07,0.00039178,30]
[398333288,1765537996528,-500.0,0.00039178,30]
[398333289,1765537996542,-500.0,0.00039178,30]
[398333290,1765537996556,-876.92,0.00039178,30]
[398333291,1765537996571,-500.0,0.00039178,30]
[398333292,1765537996587,-500.0,0.00039178,30]
[398333293,1765537996602,-500.0,0.00039178,30]
[398333294,1765537996618,-207.8114163,0.00039178,30]
[398333295,1765537996632,-500.0,0.00039178,30]
[398333296,1765537996647,-500.0,0.00039178,30]
[398333297,1765537996660,-500.0,0.00039178,30]
[398333298,1765537996674,-500.0,0.00039178,30]
[398333299,1765537996690,-500.0,0.00039178,30]
[398333300,1765537996704,-500.0,0.00039178,30]
[398333301,1765537996718,-613.85,0.00039178,30]
[398333302,1765537996732,-500.0,0.00039178,30]
[398333303,1765537996746,-705.22,0.00039178,30]
[398333304,1765537996760,-500.0,0.00039178,30]
[398333305,1765537996775,-601.44,0.00039178,30]
[398333306,1765537996789,-680.86,0.00039178,30]
[398333307,1765537996803,-500.0,0.00039178,30]
[398333308,1765537996818,-500.0,0.00039178,30]
[398333309,1765537996832,-500.0,0.00039178,30]
[398333310,1765537996850,-500.0,0.00039178,30]
[398333311,1765537996863,-500.0,0.00039178,30]
[398333312,1765537996878,-1255.36,0.00039178,30]
[398333313,1765537996892,-500.0,0.00039178,30]
[398333314,1765537996907,-500.0,0.00039178,30]
[398333315,1765537996922,-757.92,0.00039178,30]
[398333316,1765537996936,-500.0,0.00039178,30]
[398333317,1765537996951,-500.0,0.00039178,30]
[398333318,1765537996965,-976.99,0.00039178,30]
[398333319,1765537996980,-681.9,0.00039178,30]
[398333320,1765537996995,-285.42056666,0.00039178,30]
[398333321,1765537997009,-500.0,0.00039178,30]
[398333322,1765537997024,-500.0,0.00039178,30]
[398333323,1765537997040,-507.03723624,0.00039178,30]
[398333324,1765537997054,-766.68,0.00039178,30]
[398333325,1765537997070,-500.0,0.00039178,30]
[398333326,1765537997085,-500.0,0.00039178,30]
[398333327,1765537997100,-500.0,0.00039178,30]
[398333328,1765537997114,-500.0,0.00039178,30]
[398333329,1765537997129,-500.0,0.00039178,30]
[398333330,1765537997143,-500.0,0.00039178,30]
[398333331,1765537997157,-500.0,0.00039178,30]
[398333332,1765537997171,-500.0,0.00039178,30]
[398333333,1765537997187,-500.0,0.00039178,30]
[398333334,1765537997202,-500.0,0.00039178,30]
[398333335,1765537997217,-500.0,0.00039178,30]
[398333336,1765537997231,-820.89,0.00039178,30]
[398333337,1765537997786,-1425.77,0.00039178,30]
[398333338,1765537997797,-167.99849408,0.00039178,30]
[398333339,1765537997807,-379.68386047,0.00039178,25]
[398333340,1765537997817,-500.0,0.00039178,30]
[398333341,1765537997826,-500.0,0.00039178,30]
[398333342,1765537997836,-2237.4,0.00039178,30]
[398333343,1765537997848,-574.67,0.00039178,30]
[398333344,1765537997858,-500.0,0.00039178,30]
[398333345,1765537997867,-673.29,0.00039178,30]
[398333346,1765537997876,-500.0,0.00039178,30]
[398333347,1765537997887,-500.0,0.00039178,30]
[398333348,1765537997896,-1020.61,0.00039178,30]
[398333349,1765537997906,-500.0,0.00039178,30]
[398333350,1765537997915,-500.0,0.00039178,30]
[398333351,1765537997925,-500.0,0.00039178,30]
[398333352,1765537997935,-749.57,0.00039178,30]
[398333353,1765537997944,-500.0,0.00039178,30]
[398333354,1765537997953,-500.0,0.00039178,30]
[398333355,1765537997963,-558.5,0.00039178,30]
[398333356,1765537997973,-500.0,0.00039178,30]
[398333357,1765537997982,-500.0,0.00039178,30]
[398333358,1765537997991,-1224.23,0.00039178,30]
[398333359,1765537998001,-628.4,0.00039178,30]
[398333360,1765537998010,-509.26,0.00039178,30]
[398333361,1765537998020,-500.0,0.00039178,30]
[398333362,1765537998029,-500.0,0.00039178,30]
[398333363,1765537998038,-1487.24,0.00039178,30]
[398333364,1765537998047,-500.0,0.00039178,30]
[398333365,1765537998057,-500.0,0.00039178,30]
[398333366,1765537998067,-500.0,0.00039178,30]
[398333367,1765537998076,-500.0,0.00039178,30]
[398333368,1765537998086,-535.72752768,0.00039178,30]
[398333369,1765537998095,-643.83,0.00039178,30]
[398333370,1765537998105,-500.0,0.00039178,30]
[398333371,1765537998115,-1267.76,0.00039178,30]
[398333372,1765537998124,-500.0,0.00039178,30]
[398333373,1765537998134,-500.0,0.00039178,30]
[398333374,1765537998143,-554.79,0.00039178,30]
[398333375,1765537998152,-500.0,0.00039178,30]
[398333376,1765537998161,-500.0,0.00039178,30]
[398333377,1765537998170,-152.56131853,0.00039178,30]
[398333378,1765537998180,-500.13,0.00039178,30]
[398333379,1765537998189,-500.0,0.00039178,30]
[398333380,1765537998199,-543.72,0.00039178,30]
[398333381,1765537998209,-1502.85,0.00039178,30]
[398333382,1765537998218,-901.37,0.00039178,30]
[398333383,1765537998227,-865.46,0.00039178,30]
[398333384,1765537998236,-500.0,0.00039178,30]
[398333385,1765537998245,-1483.56,0.00039178,30]
[398333386,1765537998255,-500.0,0.00039178,30]
[398333387,1765537998264,-500.0,0.00039178,30]
[398333388,1765537998273,-500.0,0.00039178,30]
[398333389,1765537998282,-500.0,0.00039178,30]
[398333390,1765537998292,-500.0,0.00039178,30]
[398333391,1765537998302,-500.0,0.00039178,30]
[398333392,1765537998311,-2056.86,0.00039178,30]
[398333393,1765537998321,-500.0,0.00039178,30]
[398333394,1765537998330,-500.0,0.00039178,30]
[398333395,1765537998339,-500.0,0.00039178,30]
[398333396,1765537998348,-500.0,0.00039178,30]
[398333397,1765537998358,-598.84,0.00039178,30]
[398333398,1765537998367,-500.0,0.00039178,30]
[398333399,1765537998376,-500.0,0.00039178,30]
[398333400,1765537998385,-500.0,0.00039178,30]
[398333401,1765537998394,-512.04441982,0.00039178,30]
[398333402,1765537998404,-500.0,0.00039178,30]
[398333403,1765537998414,-500.0,0.00039178,30]
[398333404,1765537998424,-500.0,0.00039178,30]
[398333405,1765537998434,-500.0,0.00039178,30]
[398333406,1765537998444,-500.0,0.00039178,30]
[398333407,1765537998454,-500.0,0.00039178,30]
[398333408,1765537998464,-500.0,0.00039178,30]
[398333409,1765537998474,-500.0,0.00039178,30]
[398333410,1765537998484,-500.0,0.00039178,30]
[398333411,1765537998494,-500.0,0.00039178,30]
[398333412,1765537998503,-500.0,0.00039178,30]
[398333413,1765537998512,-500.0,0.00039178,30]
[398333414,1765537998522,-2287.8,0.00039178,30]
[398333415,1765537998531,-500.0,0.00039178,30]
[398333416,1765537998540,-500.0,0.00039178,30]
[398333417,1765537998549,-500.0,0.00039178,30]
[398333418,1765537998559,-450.29,0.00039178,30]
[398333419,1765537998568,-500.0,0.00039178,30]
[398333420,1765537998578,-500.0,0.00039178,30]
[398333421,1765537998587,-500.0,0.00039178,30]
[398333422,1765537998596,-500.0,0.00039178,30]
[398333423,1765537998605,-500.0,0.00039178,30]
[398333424,1765537998615,-500.0,0.00039178,30]
[398333425,1765537998624,-500.0,0.00039178,30]
[398333426,1765537998633,-555.94,0.00039178,30]
[398333427,1765537998642,-500.0,0.00039178,30]
[398333428,1765537998651,-500.0,0.00039178,30]
[398333429,1765537998661,-500.0,0.00039178,30]
[398333430,1765537998670,-632.18854213,0.00039178,30]
[398333431,1765537998679,-501.8286932,0.00039178,30]
[398333432,1765537998689,-500.0,0.00039178,30]
[398333433,1765537998699,-500.0,0.00039178,30]
[398333434,1765537998708,-500.0,0.00039178,30]
[398333435,1765537998718,-500.0,0.00039178,30]
[398333436,1765537998727,-500.0,0.00039178,30]
[398333437,1765537998736,-500.0,0.00039178,30]
[398333438,1765537998745,-469.43097571,0.00039178,30]
[398333439,1765537998754,-868.9,0.00039178,30]
[398333440,1765537998764,-567.78,0.00039178,30]
[398333441,1765537998776,-500.0,0.00039178,30]
[398333442,1765537998786,-671.73,0.00039178,30]
[398333443,1765537998795,-500.0,0.00039178,30]
[398333444,1765537998804,-503.78088498,0.00039178,30]
[398333445,1765537998813,-2439.55,0.00039178,30]
[398333446,1765537998823,-517.15,0.00039178,30]
[398333447,1765537998833,-505.44154655,0.00039178,30]
[398333448,1765537998843,-2828.46,0.00039178,120]
[398333449,1765537998855,-488.04,0.00039178,30]
[398333450,1765537998865,-500.0,0.00039178,30]
[398333451,1765537998874,-500.0,0.00039178,30]
[398333452,1765537998883,-500.0,0.00039178,30]
[398333453,1765537998893,-369.03,0.00039178,30]
[398333454,1765537998902,-500.0,0.00039178,30]
[398333455,1765537998912,-316.17,0.00039178,30]
[398333456,1765537998921,-433.1,0.00039178,30]
[398333457,1765537998931,-500.0,0.00039178,30]
[398333458,1765537998940,-3289.05,0.00039178,30]
[398333459,1765537998951,-5959.38536385,0.00039178,30]
[398333460,1765537998961,-500.0,0.00039178,7]
[398333461,1765537998970,-1876.03,0.00039178,30]
[398333462,1765537998980,-500.0,0.00039178,30]
[398333463,1765537998989,-500.0,0.00039178,30]
[398333464,1765537998999,-500.0,0.00039178,30]
[398333465,1765537999008,-405.21,0.00039178,30]
[398333466,1765537999017,-500.0,0.00039178,30]
[398333467,1765537999027,-500.0,0.00039178,30]
[398333468,1765537999036,-500.0,0.00039178,30]
[398333469,1765537999046,-500.0,0.00039178,30]
[398333470,1765537999056,-500.0,0.00039178,30]
[398333471,1765537999065,-500.0,0.00039178,30]
[398333472,1765537999074,-500.0,0.00039178,30]
[398333473,1765537999083,-230.46,0.00039178,30]
[398333474,1765537999093,-405.21,0.00039178,30]
[398333475,1765537999102,-500.0,0.00039178,30]
[398333476,1765537999111,-500.0,0.00039178,30]
[398333477,1765537999121,-500.0,0.00039178,30]
[398333478,1765537999130,-500.0,0.00039178,30]
[398333479,1765537999140,-500.0,0.00039178,30]
[398333480,1765537999149,-500.0,0.00039178,30]
[398333481,1765537999158,-500.1,0.00039178,30]
[398333482,1765537999168,-500.0,0.00039178,30]
[398333483,1765537999177,-500.0,0.00039178,30]
[398333484,1765537999186,-500.0,0.00039178,30]
[398333485,1765537999196,-500.0,0.00039178,30]
[398333486,1765537999205,-552.09,0.00039178,30]
[398333487,1765537999215,-500.0,0.00039178,30]
[398333488,1765537999225,-310.95,0.00039178,30]
[398333489,1765537999235,-500.0,0.00039178,30]
[398333490,1765537999244,-582.36,0.00039178,30]
[398333491,1765537999254,-255.27,0.00039178,30]
[398333492,1765537999263,-500.0,0.00039178,30]
[398333493,1765537999273,-405.21,0.00039178,30]
[398333494,1765537999282,-440.79,0.00039178,30]
[398333495,1765537999292,-500.0,0.00039178,30]
[398333496,1765537999301,-500.0,0.00039178,30]
[398333497,1765537999311,-500.0,0.00039178,30]
[398333498,1765537999321,-500.0,0.00039178,30]
[398333499,1765537999330,-500.0,0.00039178,30]
[398333500,1765537999339,-302.58,0.00039178,30]
[398333501,1765537999349,-199.64,0.00039178,30]
[398333502,1765537999358,-500.0,0.00039178,30]
[398333503,1765537999368,-352.56,0.00039178,30]
[398333504,1765537999377,-500.0,0.00039178,30]
[398333505,1765537999387,-500.0,0.00039178,30]
[398333506,1765537999397,-500.0,0.00039178,30]
[398333507,1765537999407,-178.0,0.00039178,30]
[398333508,1765537999416,-337.34,0.00039178,30]
[398333509,1765537999426,-500.0,0.00039178,30]
[398333510,1765537999435,-500.0,0.00039178,30]
[398333511,1765537999445,-217.30645306,0.00039178,30]
[398333512,1765537999454,-500.0,0.00039178,30]
[398333513,1765537999464,-500.0,0.00039178,30]
[398333514,1765537999473,-581.04,0.00039178,30]
[398333515,1765537999483,-500.0,0.00039178,30]
[398333516,1765537999493,-500.0,0.00039178,30]
[398333517,1765537999502,-500.0,0.00039178,30]
[398333518,1765537999512,-445.06,0.00039178,14]
[398333519,1765537999521,-242.26,0.00039178,30]
[398333520,1765537999531,-277.92,0.00039178,30]
[398333521,1765537999540,-178.0,0.00039178,30]
[398333522,1765537999549,-180.82,0.00039178,30]
[398333523,1765537999559,-632.22,0.00039178,30]
[398333524,1765537999568,-500.0,0.00039178,30]
[398333525,1765537999578,-500.0,0.00039178,30]
[398333526,1765537999588,-500.0,0.00039178,30]
[398333527,1765537999597,-500.0,0.00039178,30]
[398333528,1765537999607,-500.0,0.00039178,30]
[398333529,1765537999617,-563.84,0.00039178,30]
[398333530,1765537999627,-500.0,0.00039178,30]
[398333531,1765537999636,-500.0,0.00039178,30]
[398333532,1765537999646,-1000.0,0.00039178,14]
[398333533,1765537999655,-500.0,0.00039178,2]
[398333534,1765537999664,-800.0,0.00039178,14]
[398333535,1765537999674,-932.972515,0.00039178,30]
[398333536,1765537999684,-168.15043,0.00039178,30]
[398333537,1765537999694,-1953.93417,0.00039178,30]
[398333538,1765537999705,-1767.482813,0.00039178,30]
[398333539,1765537999715,-171.577909,0.00039178,30]
[398333540,1765537999725,-1310.696547,0.00039178,30]
[398333541,1765537999734,-1000.0,0.00039178,120]
[398333542,1765537999744,-500.0,0.00039178,10]
[398333543,1765537999754,-1014.43,0.00039178,30]
[398333544,1765537999764,-500.0,0.00039178,30]
[398333545,1765537999773,-500.0,0.00039178,30]
[398333546,1765537999782,-300.0,0.00039178,2]
[398333547,1765537999792,-1000.0,0.00039178,30]
[398333548,1765537999801,-352.09,0.00039178,2]
[398333549,1765537999810,-645.54,0.00039178,30]
[398333550,1765537999820,-500.0,0.00039178,30]
[398333551,1765537999830,-523.99,0.00039178,120]
[398333552,1765537999839,-500.0,0.00039178,2]
[398333553,1765537999850,-1994.45,0.00039178,30]
[398333554,1765537999859,-2057.12,0.00039178,30]
[398333555,1765537999868,-500.0,0.00039178,2]
[398333556,1765537999878,-300.0,0.00039178,2]
[398333557,1765537999888,-500.0,0.00039178,2]
[398333558,1765537999899,-600.0,0.00039178,30]
[398333559,1765537999909,-500.0,0.00039178,120]
[398333560,1765537999919,-500.0,0.00039189,120]
[398333561,1765537999929,-168.0,0.0003919,2]
[398333562,1765537999939,-500.0,0.000392,120]
[398333563,1765537999948,-2000.0,0.000392,120]
[398333564,1765537999958,-2000.0,0.000392,120]
[398333565,1765537999967,-2000.0,0.000392,120]
[398333566,1765537999977,-2000.0,0.000392,120]
[398333567,1765537999986,-2000.0,0.000392,120]
[398333568,1765537999996,-698.0,0.000392,120]
[398333569,1765538000005,-500.0,0.00039211,120]
[398333570,1765538000015,-847.8398743,0.00039221,30]
[398333571,1765538000024,-500.0,0.00039222,120]
[398333572,1765538000034,-500.0,0.00039233,120]
[398333573,1765538000044,-500.0,0.00039244,120]
[398333574,1765538000054,-500.0,0.00039255,120]
[398333575,1765538000063,-166.63,0.00039264,2]
[398333576,1765538000074,-500.0,0.00039266,120]
[398333577,1765538000083,-500.0,0.00039277,120]
[398333578,1765538000093,-163.31,0.00039283,120]
[398333579,1765538000102,-155.54,0.00039284,120]
[398333580,1765538000112,-500.0,0.00039288,120]
[398333581,1765538000121,-6138.0,0.00039292,2]
[398333582,1765538000131,-607.99423747,0.00039292,120]
[398333583,1765538000141,-500.0,0.00039299,120]
[398333584,1765538000150,-547.13,0.000393,30]
[398333585,1765538000159,-847.8398743,0.00039307,30]
[398333586,1765538000168,-500.0,0.0003931,120]
[398333587,1765538000178,-500.0,0.00039315,30]
[398333588,1765538000188,-500.0,0.00039321,120]
[398333589,1765538000197,-500.0,0.00039332,120]
[398333590,1765538000206,-4095.317,0.00039333,2]
[398333591,1765538000216,-500.0,0.00039342,120]
[398333592,1765538000226,-500.0,0.00039353,120]
[398333593,1765538000235,-500.0,0.00039364,120]
[398333594,1765538000245,-500.0,0.00039375,120]
[398333595,1765538000255,-1888.22414775,0.0003938,90]
[398333596,1765538000264,-163.31,0.00039383,120]
[398333597,1765538000274,-155.54,0.00039384,120]
[398333598,1765538000284,-500.0,0.00039386,120]
[398333599,1765538000293,-847.8398743,0.00039394,30]
[398333600,1765538000302,-500.0,0.00039397,120]
[398333601,1765538000313,-3070.29,0.000394,30]
[398333602,1765538000323,-500.0,0.00039408,120]
[398333603,1765538000333,-500.0,0.00039419,120]
[398333604,1765538000343,-6138.0,0.00039429,2]